bitfinex/quotes_SOLUSD_20250714
["timestamp","ask_amount","ask_price","bid_price","bid_amount"]
[1752474908013,12.34649978,166.02,166.01,31.12]
[1752474908316,6.92546617,166.02,166.01,31.12]
[1752474911106,6.92546617,166.02,166.01,31.15]
[1752474913817,0.66,166.02,166.01,31.15]
[1752474914016,6.92546617,166.02,166.01,31.15]
[1752474914716,12.34649978,166.02,166.01,31.15]
[1752474915428,12.34649978,166.02,166.01,0.03]
[1752474919021,29.13118375,166.02,166.01,0.03]
[1752474919229,35.39664992,166.02,166.01,0.03]
[1752474919818,29.13118375,166.02,166.01,0.03]
[1752474920627,29.13118375,166.02,166.0,0.03]
[1752474920628,16.78468397,166.01,166.0,0.03]
[1752474920929,29.97561631,166.01,165.94,31.15]
[1752474921110,6.26546617,165.95,165.94,31.15]
[1752474921419,6.92546617,165.95,165.94,31.15]
[1752474922726,12.34878644,165.95,165.94,31.15]
[1752474924836,12.34878644,165.95,165.94,0.03]
[1752474925208,35.39893658,165.95,165.94,0.03]
[1752474925526,29.13347041,165.95,165.94,0.03]
[1752474929909,16.78468397,165.94,165.93,0.03]
[1752474930117,29.97561631,165.94,165.93,0.03]
[1752474930921,23.71015014,165.94,165.93,0.03]
[1752474931808,29.13379724,165.94,165.93,0.03]
[1752474934813,35.39926341,165.94,165.93,0.03]
[1752474935126,29.13379724,165.94,165.93,0.03]
[1752474938138,6.26546617,165.94,165.93,0.03]
[1752474940236,6.26546617,165.94,165.93,0.69]
[1752474941539,6.26546617,165.95,165.93,0.69]
[1752474942131,6.26546617,165.96,165.94,0.66]
[1752474942332,19.8202488,166.0,165.95,0.66]
[1752474942333,0.68,166.0,165.95,0.66]
[1752474942531,6.26546617,166.0,165.95,6.92546617]
[1752474942753,6.26546617,166.01,165.96,6.92546617]
[1752474942939,11.68684523,166.01,165.96,6.26546617]
[1752474943137,6.26546617,166.01,165.97,0.66]
[1752474943339,6.32546617,166.02,165.98,31.12]
[1752474943537,6.32546617,166.02,165.99,0.66]
[1752474943929,0.06,166.02,165.99,0.66]
[1752474944843,0.06,166.02,166.0,0.66]
[1752474945821,0.06,166.02,166.01,0.66]
[1752474946021,6.32546617,166.02,165.98,31.12]
[1752474946227,6.32546617,166.02,165.99,0.66]
[1752474946532,0.06,166.02,166.0,0.66]
[1752474947533,0.06,166.02,166.01,0.66]
[1752474949151,6.32546617,166.02,165.99,0.66]
[1752474949559,6.26546617,166.01,165.99,0.66]
[1752474949759,7.00546617,166.02,165.99,0.66]
[1752474949933,6.32546617,166.02,165.99,0.66]
[1752474950445,0.06,166.02,166.0,0.66]
[1752474950640,6.32546617,166.02,166.0,0.66]
[1752474951960,6.32546617,166.02,166.01,0.66]
[1752474951961,0.06,166.02,166.01,0.66]
[1752474952665,0.06,166.02,166.01,6.92546617]
[1752474953048,0.06,166.02,166.01,13.12396617]
[1752474953236,0.06,166.02,166.01,29.90865014]
[1752474953563,0.06,166.02,166.01,31.56245014]
[1752474955054,0.06,166.02,166.01,8.5123]
[1752474955256,0.06,166.02,166.01,14.77776617]
[1752474955455,0.06,166.02,166.01,39.6123]
[1752474957557,0.06,166.02,166.01,33.4138]
[1752474957762,0.06,166.02,166.01,31.76]
[1752474958364,7.00546617,166.02,166.0,89.5]
[1752474958568,6.26546617,166.01,166.0,89.5]
[1752474958783,6.26546617,166.01,166.0,120.58]
[1752474959165,6.32546617,166.02,166.0,120.58]
[1752474959465,6.26546617,166.01,166.0,120.58]
[1752474960372,6.26546617,166.01,166.0,31.08]
[1752474961270,6.96546617,166.01,166.0,31.08]
[1752474961772,6.26546617,166.01,166.0,31.08]
[1752474966576,0.06,166.02,166.0,38.01546617]
[1752474966762,0.06,166.02,166.01,0.67]
[1752474968573,0.06,166.02,166.01,6.93546617]
[1752474969768,0.06,166.02,166.01,0.67]
[1752474969975,0.06,166.02,166.01,31.08]
[1752474971260,0.06,166.02,166.01,38.01546617]
[1752474971661,0.06,166.02,166.01,31.75]
[1752474972060,0.06,166.02,166.01,38.01546617]
[1752474974864,0.06,166.02,166.01,31.75]
[1752474975185,7.02546617,166.02,165.98,116.17]
[1752474975402,6.32546617,166.02,165.99,31.73]
[1752474975766,7.02546617,166.02,165.99,31.06]
[1752474976788,6.26546617,166.01,165.99,31.06]
[1752474977996,6.26546617,166.0,165.99,31.06]
[1752474978359,6.96546617,166.0,165.99,31.06]
[1752474978789,6.26546617,166.0,165.99,31.06]
[1752474978992,6.26546617,166.01,165.99,31.06]
[1752474981468,0.06,166.02,166.0,0.67]
[1752474981690,0.06,166.02,166.01,31.06]
[1752474982001,6.32546617,166.02,166.01,31.06]
[1752474982175,7.02546617,166.02,166.01,31.06]
[1752474983477,6.32546617,166.02,166.01,31.06]
[1752474984567,0.06,166.02,166.01,31.06]
[1752474984772,0.06,166.02,166.01,31.73]
[1752474985175,0.06,166.02,166.01,31.06]
[1752474985787,6.32546617,166.02,166.01,31.06]
[1752474986095,7.02546617,166.02,166.01,31.06]
[1752474987580,12.44649978,166.02,166.01,31.06]
[1752474991083,7.02546617,166.02,166.01,31.06]
[1752474991272,6.32546617,166.02,166.01,31.06]
[1752474991776,7.00546617,166.02,166.01,31.06]
[1752474994108,12.42649978,166.02,166.01,31.06]
[1752474997189,12.42649978,166.02,165.94,89.53]
[1752474997388,6.26546617,165.97,165.95,0.72]
[1752474997596,6.26546617,165.98,165.95,31.76]
[1752474997808,6.26546617,165.98,165.96,0.72]
[1752474997986,6.26546617,165.99,165.97,31.76]
[1752474999398,6.26546617,165.98,165.97,31.04]
[1752475000003,6.94546617,165.98,165.97,31.04]
[1752475001415,6.26546617,165.98,165.97,31.04]
[1752475001990,6.26546617,165.98,165.97,31.76]
[1752475002608,6.26546617,165.98,165.97,31.04]
[1752475004125,6.26546617,165.98,165.97,31.76]
[1752475005040,0.06,166.02,165.97,38.02546617]
[1752475005342,0.06,166.02,166.0,32.26546617]
[1752475005523,0.06,166.02,166.01,31.18]
[1752475005709,0.06,166.02,166.01,31.9]
[1752475006112,6.32546617,166.02,166.01,57.28]
[1752475006451,7.00546617,166.02,166.01,57.28]
[1752475006732,6.32546617,166.02,166.01,57.28]
[1752475006938,7.00546617,166.02,166.01,57.28]
[1752475007432,7.00546617,166.02,166.01,26.72]
[1752475007433,0.06,166.02,166.01,26.72]
[1752475007634,0.06,166.02,166.01,64.26546617]
[1752475011320,0.06,166.04,166.01,64.26546617]
[1752475011644,0.06,166.04,166.03,29.65255014]
[1752475011818,0.06,166.04,166.03,61.07255014]
[1752475012020,0.06,166.04,166.03,61.79255014]
[1752475013617,0.06,166.04,166.03,67.81555803]
[1752475013961,0.06,166.04,166.03,63.44515014]
[1752475014133,0.06,166.04,166.03,69.46815803]
[1752475017657,0.06,166.04,166.03,63.44515014]
[1752475017832,0.06,166.04,166.03,25.75968397]
[1752475018145,0.06,166.04,166.03,40.03806617]
[1752475018549,0.06,166.04,166.03,33.7726]
[1752475018851,0.06,166.04,166.03,40.03806617]
[1752475019148,0.06,166.04,166.03,129.53806617]
[1752475020145,0.06,166.04,166.03,122.5526]
[1752475020448,0.06,166.04,166.03,129.53806617]
[1752475020650,0.06,166.04,166.03,98.13806617]
[1752475020838,0.06,166.04,166.03,129.51806617]
[1752475021041,0.06,166.04,166.03,91.8726]
[1752475021351,0.74,166.04,166.03,146.88]
[1752475021645,0.06,166.04,166.03,63.64546617]
[1752475021849,0.06,166.04,166.03,64.34546617]
[1752475022837,0.06,166.04,166.03,144.63015014]
[1752475023041,0.06,166.04,166.03,152.23315803]
[1752475023246,0.06,166.04,166.03,158.64975803]
[1752475023422,0.06,166.04,166.03,152.62675014]
[1752475024542,0.06,166.04,166.03,121.24675014]
[1752475024935,0.06,166.04,166.03,120.84]
[1752475025436,0.06,166.04,166.03,146.84]
[1752475025850,0.74,166.04,166.03,146.84]
[1752475026146,0.74,166.04,166.03,120.84]
[1752475026451,0.74,166.04,166.03,31.34]
[1752475027051,7.00546617,166.04,165.99,89.5]
[1752475027347,7.00546617,166.04,166.0,57.34]
[1752475027348,0.68,166.03,166.0,57.34]
[1752475027558,6.26546617,166.01,166.0,31.34]
[1752475027743,6.94546617,166.01,166.0,31.34]
[1752475028245,0.68,166.01,166.0,31.34]
[1752475028652,6.94546617,166.01,166.0,31.34]
[1752475029931,12.36682632,166.01,166.0,31.34]
[1752475031030,12.36682632,166.01,165.95,26.0]
[1752475031031,6.94546617,166.01,165.95,32.96546617]
[1752475031238,6.26546617,166.0,165.96,31.34]
[1752475031438,6.94546617,166.0,165.96,32.04]
[1752475031729,0.68,166.0,165.96,37.60546617]
[1752475031926,6.26546617,166.01,165.97,0.7]
[1752475032157,6.26546617,166.02,165.98,32.02]
[1752475032361,6.94546617,166.02,165.98,32.02]
[1752475032856,0.68,166.02,165.98,32.02]
[1752475033045,6.26546617,166.03,165.99,0.7]
[1752475033232,7.00546617,166.04,166.0,32.02]
[1752475033434,0.06,166.04,166.0,37.58546617]
[1752475033656,0.74,166.04,166.01,0.7]
[1752475033862,0.74,166.04,166.02,31.32]
[1752475034247,7.00546617,166.04,166.02,31.32]
[1752475034454,0.68,166.03,166.02,31.32]
[1752475034654,6.32546617,166.04,166.02,31.32]
[1752475034960,7.00546617,166.04,166.02,31.32]
[1752475035334,0.68,166.03,166.02,31.32]
[1752475035535,6.32546617,166.04,166.02,31.32]
[1752475035736,0.74,166.04,166.02,31.32]
[1752475036562,6.94546617,166.03,166.02,31.32]
[1752475037071,0.68,166.03,166.02,31.32]
[1752475038063,6.32546617,166.04,166.02,31.32]
[1752475038267,7.00546617,166.04,166.02,31.32]
[1752475039760,6.32546617,166.04,166.02,31.32]
[1752475040066,6.94546617,166.03,166.02,31.32]
[1752475040444,6.94546617,166.03,166.02,31.35]
[1752475040656,0.68,166.03,166.02,31.35]
[1752475041255,0.06,166.04,166.02,31.35]
[1752475041460,0.74,166.04,166.02,31.35]
[1752475042341,6.94546617,166.03,166.02,31.35]
[1752475042537,6.94546617,166.03,166.02,0.03]
[1752475043264,23.73015014,166.03,166.02,0.03]
[1752475043642,29.15085724,166.03,166.02,0.03]
[1752475047569,35.41632341,166.03,166.02,0.03]
[1752475048274,16.78468397,166.02,165.95,31.22]
[1752475048456,6.26546617,165.96,165.95,31.22]
[1752475048962,6.94546617,165.96,165.95,31.22]
[1752475049161,6.26546617,165.96,165.95,31.22]
[1752475049474,6.26546617,165.97,165.95,31.22]
[1752475049784,6.94546617,165.96,165.95,31.22]
[1752475050772,12.36845966,165.96,165.95,31.22]
[1752475051154,12.36845966,165.96,165.94,0.03]
[1752475051354,6.96546617,165.95,165.94,0.03]
[1752475052266,12.38878644,165.95,165.94,0.03]
[1752475053573,6.26546617,165.95,165.94,0.03]
[1752475055078,6.26546617,165.96,165.94,0.03]
[1752475055461,6.26546617,165.96,165.94,0.72]
[1752475055662,6.26546617,165.96,165.94,0.03]
[1752475056687,6.26546617,165.95,165.94,0.03]
[1752475056868,6.96546617,165.95,165.94,0.03]
[1752475058763,12.38878644,165.95,165.94,0.03]
[1752475059293,6.26546617,165.95,165.94,0.03]
[1752475059991,6.96546617,165.95,165.94,0.03]
[1752475060565,12.38878644,165.95,165.94,0.03]
[1752475061298,6.96546617,165.95,165.94,0.03]
[1752475062380,12.38878644,165.95,165.94,0.03]
[1752475062892,6.96546617,165.95,165.94,0.03]
[1752475063090,6.26546617,165.95,165.94,0.03]
[1752475063390,11.68878644,165.95,165.94,0.03]
[1752475063772,6.26546617,165.95,165.94,0.03]
[1752475064274,12.38878644,165.95,165.94,0.03]
[1752475064478,6.26546617,165.95,165.94,0.03]
[1752475064699,0.7,165.97,165.94,0.72]
[1752475064905,6.26546617,165.97,165.95,0.69]
[1752475065080,6.26546617,165.97,165.94,31.17]
[1752475065398,6.26546617,165.98,165.95,0.69]
[1752475065771,6.26546617,165.97,165.95,0.69]
[1752475067986,0.7,165.99,165.95,0.69]
[1752475068289,6.26546617,165.97,165.95,0.69]
[1752475068596,6.26546617,165.98,165.96,0.69]
[1752475068772,6.26546617,165.99,165.96,0.69]
[1752475070685,12.38752041,165.99,165.94,38.12546617]
[1752475071080,12.38752041,165.99,165.95,0.69]
[1752475072086,6.96546617,165.98,165.94,31.17]
[1752475072294,6.96546617,165.98,165.94,31.86]
[1752475072995,0.7,165.98,165.95,0.69]
[1752475073187,6.96546617,165.98,165.95,0.69]
[1752475073394,6.96546617,165.98,165.94,31.86]
[1752475074100,0.7,166.0,165.95,0.69]
[1752475074278,6.26546617,165.98,165.95,0.69]
[1752475074478,6.96546617,165.98,165.95,0.69]
[1752475075001,6.96546617,165.97,165.94,31.17]
[1752475075209,6.96546617,165.97,165.94,31.86]
[1752475077006,6.26546617,165.97,165.94,31.86]
[1752475077186,11.68816631,165.97,165.94,31.86]
[1752475077503,0.7,165.99,165.95,0.69]
[1752475077806,6.26546617,165.98,165.96,0.69]
[1752475078307,6.12168674,166.0,165.96,0.69]
[1752475078510,6.26546617,165.98,165.96,0.69]
[1752475079202,11.68751594,165.99,165.96,0.69]
[1752475079592,6.26546617,165.99,165.97,31.77]
[1752475079892,12.3872697,166.0,165.97,31.77]
[1752475081798,11.6872697,166.0,165.97,31.08]
[1752475081996,0.67,165.99,165.97,31.08]
[1752475082307,11.6872697,166.0,165.97,31.08]
[1752475082613,0.06,166.02,165.98,0.67]
[1752475082614,6.15113042,166.02,165.98,0.67]
[1752475082795,6.26546617,166.01,165.98,0.67]
[1752475082997,12.41659659,166.02,165.98,0.67]
[1752475083495,0.06,166.02,166.01,6.26546617]
[1752475083704,0.06,166.02,166.01,37.34546617]
[1752475083904,0.06,166.02,166.01,38.01546617]
[1752475084326,0.06,166.02,166.01,31.75]
[1752475084489,6.99546617,166.02,165.99,115.5]
[1752475084686,6.93546617,166.01,166.0,31.08]
[1752475084915,6.93546617,166.01,165.95,2.2605]
[1752475085118,6.26546617,165.98,165.95,1.5905]
[1752475085415,6.93546617,165.97,165.96,31.08]
[1752475085787,12.35813291,165.97,165.94,0.03]
[1752475086006,6.26546617,165.95,165.94,31.11]
[1752475086396,6.93546617,165.95,165.94,31.11]
[1752475087118,0.67,165.97,165.94,31.11]
[1752475087428,6.26546617,165.97,165.95,0.67]
[1752475088212,6.26546617,165.96,165.94,31.11]
[1752475088518,6.26546617,165.96,165.94,31.78]
[1752475089606,6.26546617,165.96,165.94,31.11]
[1752475089904,6.26546617,165.96,165.94,31.78]
[1752475091710,0.67,165.99,165.95,0.67]
[1752475091903,5.4811439,166.02,165.97,6.26546617]
[1752475092089,5.4811439,166.02,165.98,38.01546617]
[1752475092090,0.06,166.02,165.98,38.01546617]
[1752475092289,0.06,166.02,165.99,0.67]
[1752475092485,0.06,166.02,166.0,0.67]
[1752475092690,0.06,166.02,166.01,31.08]
[1752475093118,11.74649978,166.02,166.01,31.08]
[1752475093319,12.41649978,166.02,166.01,31.08]
[1752475096120,5.48103361,166.02,166.01,31.08]
[1752475096323,11.74649978,166.02,166.01,31.08]
[1752475096622,0.06,166.02,166.01,31.08]
[1752475096923,6.32546617,166.02,166.01,31.08]
[1752475097297,0.06,166.02,166.01,31.75]
[1752475099821,0.06,166.02,165.99,0.67]
[1752475100121,6.26546617,166.01,166.0,31.08]
[1752475100293,6.32546617,166.02,166.0,31.08]
[1752475100808,6.99546617,166.02,166.0,31.08]
[1752475101112,12.41666155,166.02,166.0,31.08]
[1752475101317,11.74666155,166.02,166.0,31.08]
[1752475102295,12.41666155,166.02,166.0,31.08]
[1752475102490,6.26546617,166.01,166.0,31.08]
[1752475102717,6.93546617,166.01,166.0,31.08]
[1752475104319,5.42168674,166.0,165.96,117.8152]
[1752475104499,11.68715291,166.0,165.98,31.08]
[1752475104696,6.26546617,165.99,165.98,31.08]
[1752475105215,6.93546617,165.99,165.98,31.08]
[1752475105416,6.26546617,165.99,165.98,31.08]
[1752475106421,11.68747954,165.99,165.98,31.08]
[1752475108713,5.42168674,166.0,165.98,31.08]
[1752475108894,6.26546617,165.99,165.98,31.08]
[1752475109097,11.68715291,166.0,165.98,31.08]
[1752475109516,6.26546617,166.0,165.99,0.67]
[1752475109720,11.68691952,166.01,165.99,0.67]
[1752475109927,11.68691952,166.01,166.0,31.08]
[1752475110220,6.26546617,166.01,166.0,31.08]
[1752475110603,6.32546617,166.02,166.0,31.75]
[1752475110904,11.74651607,166.02,166.0,31.75]
[1752475112129,11.74651607,166.02,166.0,31.08]
[1752475112424,6.26546617,166.01,166.0,31.08]
[1752475112924,12.40682632,166.01,166.0,31.08]
[1752475113912,12.40682632,166.01,165.96,26.72]
[1752475114122,6.26546617,165.99,165.97,31.06]
[1752475114312,6.26546617,165.99,165.97,31.78]
[1752475114515,6.26546617,166.0,165.97,31.78]
[1752475115712,11.68728002,166.0,165.98,0.72]
[1752475115913,0.06,166.02,165.99,31.78]
[1752475116524,0.06,166.02,166.0,6.98546617]
[1752475116707,0.06,166.02,166.01,31.06]
[1752475116905,0.06,166.02,166.01,31.78]
[1752475118413,0.06,166.02,166.01,127.54546617]
[1752475130742,0.06,166.02,166.01,144.33015014]
[1752475131043,0.06,166.02,166.01,170.33015014]
[1752475132448,0.06,166.02,166.01,153.54546617]
[1752475135731,0.06,166.02,166.01,147.28]
[1752475135931,0.06,166.02,166.01,153.54546617]
[1752475136427,0.06,166.02,166.01,89.5]
[1752475136632,7.04546617,166.02,166.01,89.5]
[1752475136941,7.04546617,166.02,166.01,120.54]
[1752475137945,12.46649978,166.02,166.01,120.54]
[1752475138143,7.04546617,166.02,166.01,120.54]
[1752475138945,12.46649978,166.02,166.01,120.54]
[1752475139453,12.46649978,166.02,165.95,89.5]
[1752475139753,6.26546617,165.98,165.96,31.04]
[1752475139927,6.26546617,165.97,165.96,31.04]
[1752475140121,6.98546617,165.97,165.96,31.04]
[1752475143244,12.40813291,165.97,165.96,31.04]
[1752475145457,12.40813291,165.97,165.94,0.03]
[1752475145641,6.26546617,165.95,165.94,31.07]
[1752475145835,6.07266674,165.97,165.94,31.07]
[1752475146041,6.26546617,166.0,165.95,6.97546617]
[1752475146225,6.07143572,166.01,165.96,38.01546617]
[1752475146421,5.42143572,166.01,165.97,0.71]
[1752475146645,6.26546617,166.0,165.98,31.04]
[1752475147037,6.26546617,165.99,165.98,31.04]
[1752475147346,6.91546617,165.99,165.98,31.04]
[1752475147652,12.33747954,165.99,165.98,31.04]
[1752475149230,6.07201337,165.99,165.98,31.04]
[1752475149432,12.33747954,165.99,165.98,31.04]
[1752475150255,12.33747954,165.99,165.97,31.04]
[1752475150459,6.26546617,165.98,165.97,31.04]
[1752475150661,5.48126681,166.02,165.97,38.01546617]
[1752475150861,0.06,166.02,165.99,6.26546617]
[1752475151062,5.48103615,166.02,166.0,31.04]
[1752475151641,0.06,166.02,166.0,31.04]
[1752475151837,0.06,166.02,166.0,31.75]
[1752475152532,0.06,166.02,166.01,0.71]
[1752475153966,0.06,166.02,166.0,37.30546617]
[1752475153967,0.06,166.02,166.0,31.04]
[1752475154169,0.06,166.02,166.0,31.75]
[1752475154349,0.06,166.02,166.01,0.71]
[1752475154549,0.06,166.02,166.0,31.75]
[1752475156180,0.06,166.02,166.0,38.01546617]
[1752475156362,0.06,166.02,166.0,37.30546617]
[1752475156575,0.06,166.02,166.01,0.71]
[1752475156751,0.06,166.02,166.0,31.75]
[1752475157576,0.71,166.02,166.0,31.04]
[1752475157749,6.97546617,166.02,166.0,31.04]
[1752475158172,0.71,166.02,166.0,31.04]
[1752475159464,6.97546617,166.02,166.0,31.04]
[1752475159872,0.71,166.02,166.0,31.04]
[1752475160050,0.06,166.02,166.0,31.04]
[1752475160251,5.48107558,166.02,166.0,31.04]
[1752475160469,0.06,166.02,166.0,31.04]
[1752475161761,0.06,166.02,166.01,0.71]
[1752475163195,0.06,166.02,166.01,6.97546617]
[1752475164374,0.06,166.02,166.01,0.71]
[1752475164679,0.06,166.02,166.01,6.97546617]
[1752475165359,0.06,166.02,166.01,113.26015014]
[1752475166564,0.06,166.02,166.01,96.47546617]
[1752475169955,0.06,166.02,166.01,113.26015014]
[1752475170266,0.06,166.02,166.01,139.26015014]
[1752475173481,0.06,166.02,166.01,132.99468397]
[1752475173668,0.06,166.02,166.01,139.26015014]
[1752475174967,0.06,166.02,166.01,122.47546617]
[1752475175182,0.06,166.02,166.01,115.5]
[1752475175664,0.06,166.02,166.01,146.5]
[1752475175864,0.06,166.02,166.01,57.0]
[1752475176064,0.06,166.02,166.01,57.72]
[1752475178369,7.01546617,166.02,165.97,0.72]
[1752475178563,7.01546617,166.02,165.98,31.72]
[1752475178965,0.69,166.01,165.98,31.72]
[1752475180263,12.3769234,166.01,165.98,31.0]
[1752475180480,6.26546617,165.99,165.96,89.53]
[1752475180782,6.26546617,165.97,165.96,0.03]
[1752475180962,6.26546617,165.97,165.96,31.03]
[1752475181163,6.95546617,165.97,165.96,31.03]
[1752475184187,6.26546617,166.0,165.96,31.75]
[1752475184370,0.69,165.99,165.96,31.75]
[1752475184877,11.68719988,166.0,165.96,31.75]
[1752475185081,6.26546617,165.99,165.96,31.75]
[1752475185286,0.69,165.99,165.96,31.75]
[1752475185582,6.95546617,165.99,165.96,31.75]
[1752475186392,6.95546617,165.99,165.96,31.03]
[1752475186627,6.95546617,165.98,165.96,31.03]
[1752475186768,0.69,165.97,165.96,31.03]
[1752475187289,6.95546617,165.97,165.96,31.03]
[1752475187885,6.95546617,165.97,165.96,0.03]
[1752475188976,12.37813291,165.97,165.96,0.03]
[1752475192521,11.68789028,165.98,165.96,31.03]
[1752475192684,12.37789028,165.98,165.96,31.03]
[1752475192884,0.69,165.98,165.96,31.03]
[1752475193096,5.42202722,165.99,165.96,31.75]
[1752475193303,6.11202722,165.99,165.96,31.03]
[1752475193493,12.37749339,165.99,165.96,31.03]
[1752475193814,11.68749339,165.99,165.96,31.03]
[1752475194104,0.69,165.98,165.96,31.03]
[1752475194304,5.42202722,165.99,165.96,31.03]
[1752475194510,5.42202722,165.99,165.97,0.72]
[1752475194706,12.3771996,166.0,165.98,31.0]
[1752475195104,5.42140729,166.01,165.98,31.0]
[1752475195302,12.37687346,166.01,165.98,31.0]
[1752475195488,6.11140729,166.01,165.98,31.0]
[1752475195814,0.69,166.0,165.98,31.0]
[1752475196006,6.95546617,166.0,165.98,31.0]
[1752475197109,12.37720037,166.0,165.98,31.0]
[1752475197505,0.69,166.0,165.98,31.0]
[1752475197706,6.17110925,166.02,165.98,31.0]
[1752475197885,6.26546617,166.01,165.98,31.0]
[1752475198089,6.26546617,165.99,165.98,31.0]
[1752475198289,6.95546617,166.0,165.98,31.0]
[1752475199613,6.95546617,165.99,165.98,31.0]
[1752475200104,6.95546617,165.99,165.96,31.03]
[1752475200404,6.95546617,165.98,165.96,31.03]
[1752475201188,6.11257932,165.98,165.96,31.03]
[1752475201419,12.37804549,165.98,165.96,31.03]
[1752475202716,0.06,166.02,165.97,6.97546617]
[1752475202895,0.06,166.02,166.01,26.0]
[1752475203093,0.06,166.02,166.01,56.98]
[1752475203492,0.71,166.02,166.01,56.98]
[1752475203816,6.32546617,166.02,166.01,56.98]
[1752475204200,0.06,166.02,166.01,57.69]
[1752475204399,0.06,166.02,166.01,63.95546617]
[1752475213818,0.06,166.02,166.01,63.24546617]
[1752475214022,0.71,166.02,166.01,30.98]
[1752475215037,6.13103361,166.02,165.96,2.2599]
[1752475215197,6.26546617,166.0,165.96,0.03]
[1752475215403,6.91546617,166.01,165.97,30.98]
[1752475215610,0.65,166.0,165.97,30.98]
[1752475215809,6.91546617,166.0,165.97,30.98]
[1752475216027,0.65,165.99,165.97,30.98]
[1752475216223,0.65,166.0,165.97,37.24546617]
[1752475216660,0.65,165.99,165.97,30.98]
[1752475216926,0.65,165.98,165.97,30.98]
[1752475217140,6.07234004,165.98,165.96,0.03]
[1752475217307,12.33780621,165.98,165.96,0.03]
[1752475217501,0.65,165.97,165.96,0.03]
[1752475217702,6.91546617,165.97,165.96,0.03]
[1752475219126,12.33813291,165.97,165.96,0.03]
[1752475220139,5.42235592,165.98,165.96,0.03]
[1752475220518,0.65,165.99,165.97,6.26546617]
[1752475220909,0.65,166.01,165.98,37.24546617]
[1752475221139,0.06,166.02,166.0,6.26546617]
[1752475222244,0.06,166.02,166.01,37.24546617]
[1752475222414,0.06,166.02,166.01,30.98]
[1752475222816,5.48103361,166.02,166.01,30.98]
[1752475223141,0.71,166.02,166.01,30.98]
[1752475225049,0.06,166.02,166.01,30.98]
[1752475225424,0.06,166.02,166.01,37.24546617]
[1752475225945,0.06,166.02,166.01,30.98]
[1752475226115,0.06,166.02,166.01,37.24546617]
[1752475226754,0.06,166.02,166.01,31.69]
[1752475227059,0.06,166.02,166.01,37.95546617]
[1752475227222,0.06,166.02,166.01,63.95546617]
[1752475230533,0.06,166.02,166.01,56.98]
[1752475230776,0.71,166.02,165.98,6.26546617]
[1752475231066,0.71,166.02,165.99,30.96]
[1752475231067,0.72,166.01,165.99,30.96]
[1752475231276,0.72,166.01,165.96,117.125]
[1752475231439,0.72,166.0,165.97,30.96]
[1752475231640,0.72,165.99,165.97,30.96]
[1752475232142,0.72,165.98,165.97,30.96]
[1752475234060,0.72,166.0,165.97,30.96]
[1752475234764,5.48110199,166.02,165.97,30.96]
[1752475234971,0.72,166.01,165.98,10.44245276]
[1752475235469,6.1414489,166.01,165.97,42.09245276]
[1752475236470,6.1414489,166.01,165.97,42.12245276]
[1752475237355,16.58390166,166.01,165.97,42.12245276]
[1752475237550,0.72,166.01,165.97,42.12245276]